fUSD/lending_fUSD_20251130
["ID","MTS","AMOUNT","RATE_DAILY","PERIOD"]
[395171571,1764508241105,-885.86372501,0.00017521,2]
[395171572,1764508241114,-1000.0,0.00017521,2]
[395171573,1764508241123,-1000.0,0.00017521,2]
[395171574,1764508241133,-1000.0,0.00017521,2]
[395171575,1764508241142,-1000.0,0.00017521,2]
[395171576,1764508241152,-540.53867105,0.00017521,2]
[395171577,1764508241162,-1000.0,0.00017521,2]
[395171578,1764508241171,-1000.0,0.00017521,2]
[395171579,1764508241182,-1000.0,0.00017521,2]
[395171580,1764508241192,-427.55165138,0.00017529,2]
[395171581,1764508241202,-150.0,0.00017548,2]
[395171582,1764508241211,-500.0,0.00017548,2]
[395171583,1764508241220,-2523.0,0.00017575,2]
[395171584,1764508241230,-2523.0,0.00017579,2]
[395171585,1764508241239,-2000.0,0.00017616,2]
[395171586,1764508241250,-2000.0,0.00017616,2]
[395171587,1764508241262,-964.79820142,0.00017616,2]
[395171588,1764508241271,-1679.23597365,0.00017616,2]
[395171589,1764508241280,-1045.13032417,0.00017616,2]
[395171590,1764508241290,-2000.0,0.00017616,2]
[395171591,1764508241299,-2523.0,0.00017627,2]
[395171592,1764508241308,-2523.0,0.0001764,2]
[395171593,1764508241319,-1472.0,0.00017646,2]
[395171594,1764508241329,-217.21258986,0.00017647,2]
[395171595,1764508241339,-250.0,0.00017683,2]
[395171596,1764508241348,-165.01712022,0.00017685,2]
[395171597,1764508241358,-500.0,0.00017685,2]
[395171598,1764508241368,-2523.0,0.00017695,2]
[395171599,1764508241377,-380.37,0.00017735,2]
[395171600,1764508241387,-2523.0,0.00017739,2]
[395171601,1764508241396,-154.01392141,0.00017808,2]
[395171602,1764508241406,-500.0,0.00017822,2]
[395171603,1764508241415,-2523.0,0.00017823,2]
[395171604,1764508241424,-1000.0,0.00017853,2]
[395171605,1764508241434,-500.0,0.00017959,2]
[395171606,1764508241443,-380.39,0.00018009,2]
[395171607,1764508241452,-2348.0,0.00018015,2]
[395171608,1764508241461,-1472.0,0.00018043,2]
[395171609,1764508241471,-217.21258986,0.00018047,2]
[395171610,1764508241480,-831.33630207,0.00018068,2]
[395171611,1764508241489,-1500.0,0.00018068,2]
[395171612,1764508241498,-1500.0,0.00018068,2]
[395171613,1764508241508,-1615.0167694,0.00018068,2]
[395171614,1764508241518,-1500.0,0.00018068,2]
[395171615,1764508241527,-1500.0,0.00018068,2]
[395171616,1764508241536,-1500.0,0.00018068,2]
[395171617,1764508241546,-578.69635007,0.00018068,2]
[395171618,1764508241555,-1500.0,0.00018068,2]
[395171619,1764508241564,-1500.0,0.00018068,2]
[395171620,1764508241573,-1500.0,0.00018068,2]
[395171621,1764508241582,-819.78821702,0.00018068,2]
[395171622,1764508241591,-508.98472994,0.00018068,2]
[395171623,1764508241600,-1500.0,0.00018068,2]
[395171624,1764508241610,-1500.0,0.00018068,2]
[395171625,1764508241619,-185.89678075,0.00018078,2]
[395171626,1764508241628,-277.35679052,0.00018078,2]
[395171627,1764508241638,-578.20924308,0.00018079,2]
[395171628,1764508241647,-1000.0,0.00018082,2]
[395171629,1764508241982,-500.0,0.00018096,2]
[395171630,1764508241992,-456.0,0.000181,2]
[395171631,1764508242002,-971.0,0.000181,2]
[395171632,1764508242011,-304.0,0.000181,2]
[395171633,1764508242020,-206.0,0.000181,2]
[395171634,1764508242029,-2000.0,0.00018164,2]
[395171635,1764508242039,-2500.0,0.00018164,2]
[395171636,1764508242049,-2500.0,0.00018164,2]
[395171637,1764508242058,-3292.0,0.00018223,2]
[395171638,1764508242067,-500.0,0.00018233,2]
[395171639,1764508242076,-167.58,0.00018284,2]
[395171640,1764508242085,-2348.0,0.00018287,2]
[395171641,1764508242098,-1472.0,0.00018305,2]
[395171642,1764508242107,-217.21258986,0.00018353,2]
[395171643,1764508242117,-300.0,0.00018355,2]
[395171644,1764508242126,-87916.12,0.00018356,2]
[395171645,1764508242135,-500.0,0.0001837,2]
[395171646,1764508242145,-250.0,0.000184,2]
[395171647,1764508242154,-217.21258986,0.00018428,2]
[395171648,1764508242163,-500.0,0.00018507,2]
[395171649,1764508242175,-560.10385674,0.00018616,2]
[395171650,1764508242184,-1650.54892794,0.00018616,2]
[395171651,1764508242193,-558.97214174,0.00018616,2]
[395171652,1764508242203,-2096.43313874,0.00018616,2]
[395171653,1764508242212,-2000.0,0.00018616,2]
[395171654,1764508242221,-1825.7457569,0.00018616,2]
[395171655,1764508242230,-150.0,0.00018633,2]
[395171656,1764508242239,-150.0,0.00018633,2]
[395171657,1764508242248,-150.0,0.00018633,2]
[395171658,1764508242257,-1603.0,0.00018633,2]
[395171659,1764508242267,-610.0,0.00018633,2]
[395171660,1764508242276,-1321.0,0.00018633,2]
[395171661,1764508242285,-3442.0,0.00018633,2]
[395171662,1764508242294,-1258.0,0.00018633,2]
[395171663,1764508242303,-640.0,0.00018633,2]
[395171665,1764508242312,-1193.0,0.00018633,2]
[395171667,1764508242322,-909.0,0.00018633,2]
[395171668,1764508242331,-562.0,0.00018633,2]
[395171669,1764508242340,-2718.0,0.00018633,2]
[395171670,1764508242349,-500.0,0.00018644,2]
[395171671,1764508242359,-217.21258986,0.0001865,2]
[395171673,1764508242368,-3000.0,0.00018712,2]
[395171675,1764508242378,-3000.0,0.00018712,2]
[395171677,1764508242387,-5000.0,0.0001875,3]
[395171678,1764508242396,-500.0,0.0001876,2]
[395171679,1764508242406,-1000.0,0.0001876,2]
[395171680,1764508242415,-500.0,0.00018781,2]
[395171681,1764508242424,-150.72,0.000188,2]
[395171682,1764508242433,-150.72,0.000188,2]
[395171683,1764508242443,-150.72,0.000188,2]
[395171684,1764508242452,-150.72,0.000188,2]
[395171685,1764508242462,-150.72,0.000188,2]
[395171686,1764508242472,-150.72,0.000188,2]
[395171687,1764508242482,-150.72,0.000188,2]
[395171688,1764508242493,-150.72,0.000188,2]
[395171689,1764508242504,-150.72,0.000188,2]
[395171690,1764508242515,-150.72,0.000188,2]
[395171691,1764508242525,-150.72,0.000188,2]
[395171692,1764508242535,-150.72,0.000188,2]
[395171693,1764508242544,-150.72,0.000188,2]
[395171694,1764508242554,-150.72,0.000188,2]
[395171695,1764508242566,-150.72,0.000188,2]
[395171696,1764508242575,-150.72,0.000188,2]
[395171697,1764508242585,-150.72,0.000188,2]
[395171698,1764508242594,-150.72,0.000188,2]
[395171699,1764508242603,-150.72,0.000188,2]
[395171700,1764508242613,-150.72,0.000188,2]
[395171701,1764508242622,-150.72,0.000188,2]
[395171702,1764508242631,-150.72,0.000188,2]
[395171703,1764508242641,-150.72,0.000188,2]
[395171704,1764508242651,-150.72,0.000188,2]
[395171705,1764508242661,-150.72,0.000188,2]
[395171706,1764508242670,-150.72,0.000188,2]
[395171707,1764508242679,-150.72,0.000188,2]
[395171708,1764508242689,-150.72,0.000188,2]
[395171709,1764508242698,-150.72,0.000188,2]
[395171710,1764508242708,-150.72,0.000188,2]
[395171711,1764508242717,-150.72,0.000188,2]
[395171712,1764508242727,-150.72,0.000188,2]
[395171713,1764508242737,-150.72,0.000188,2]
[395171714,1764508242746,-150.72,0.000188,2]
[395171715,1764508242757,-150.72,0.000188,2]
[395171716,1764508242767,-150.72,0.000188,2]
[395171717,1764508242776,-150.72,0.000188,2]
[395171718,1764508242786,-150.72,0.000188,2]
[395171719,1764508242796,-150.72,0.000188,2]
[395171720,1764508242806,-150.72,0.000188,2]
[395171721,1764508242820,-150.72,0.000188,2]
[395171722,1764508242830,-150.72,0.000188,2]
[395171723,1764508242840,-150.72,0.000188,2]
[395171724,1764508242850,-150.72,0.000188,2]
[395171725,1764508242860,-150.72,0.000188,2]
[395171726,1764508242870,-150.72,0.000188,2]
[395171727,1764508242879,-150.72,0.000188,2]
[395171728,1764508242889,-150.72,0.000188,2]
[395171729,1764508242899,-150.72,0.000188,2]
[395171730,1764508242908,-150.72,0.000188,2]
[395171731,1764508242917,-150.72,0.000188,2]
[395171732,1764508242928,-150.72,0.000188,2]
[395171733,1764508242937,-150.72,0.000188,2]
[395171734,1764508242946,-150.72,0.000188,2]
[395171735,1764508242956,-150.72,0.000188,2]
[395171736,1764508242965,-150.72,0.000188,2]
[395171737,1764508242974,-150.72,0.000188,2]
[395171738,1764508242983,-150.72,0.000188,2]
[395171739,1764508242992,-150.72,0.000188,2]
[395171740,1764508243002,-150.72,0.000188,2]
[395171741,1764508243011,-150.72,0.000188,2]
[395171742,1764508243020,-150.72,0.000188,2]
[395171743,1764508243029,-150.72,0.000188,2]
[395171744,1764508243039,-150.72,0.000188,2]
[395171745,1764508243048,-150.72,0.000188,2]
[395171746,1764508243058,-150.72,0.000188,2]
[395171747,1764508243070,-150.72,0.000188,2]
[395171748,1764508243080,-150.72,0.000188,2]
[395171749,1764508243090,-150.72,0.000188,2]
[395171750,1764508243099,-150.72,0.000188,2]
[395171751,1764508243109,-1600.0,0.00018852,2]
[395171752,1764508243119,-201.88,0.00018853,2]
[395171753,1764508243129,-500.0,0.00018918,2]
[395171754,1764508243138,-217.21258986,0.00018934,2]
[395171756,1764508243148,-250.0,0.00019,2]
[395171757,1764508243158,-250.0,0.00019,2]
[395171758,1764508243167,-250.0,0.00019,2]
[395171759,1764508243176,-250.0,0.00019,2]
[395171760,1764508243186,-250.0,0.00019,2]
[395171761,1764508243195,-250.0,0.00019,2]
[395171762,1764508243204,-250.0,0.00019,2]
[395171763,1764508243214,-250.0,0.00019,2]
[395171764,1764508243224,-3643.94537065,0.00019,2]
[395171765,1764508243233,-1104.0536043,0.00019,2]
[395171766,1764508243243,-300.0,0.00019,2]
[395171767,1764508243252,-1792.10575,0.00019,2]
[395171768,1764508243261,-33297.25785032,0.00019,2]
[395171846,1764508451134,168.0,0.00025,120]
[395171957,1764509210917,1316.81342585,0.000145,4]
[395172105,1764509394652,166.22,7.014e-05,2]
[395172106,1764509394849,166.22,7.891e-05,2]
[395172107,1764509395031,166.22,8.767e-05,2]
[395172108,1764509395240,166.22,9.644e-05,2]
[395172109,1764509395447,166.22,0.00010521,2]
[395172110,1764509395661,166.22,0.00011398,2]
[395172143,1764509431762,-166.22,0.00012274,2]
[395172144,1764509431771,-166.22,0.00013151,2]
[395172145,1764509431781,-26.36,0.000135,2]
[395172146,1764509436079,-1819.58671573,0.000135,2]
[395172147,1764509436088,-281.90988596,0.00013502,2]
[395172148,1764509436099,-142.77325824,0.00013502,2]
[395172149,1764509436199,-107.22674176,0.00013502,2]
[395172150,1764509436209,-379.61,0.00013699,2]
[395172151,1764509436220,-195.0,0.00013699,2]
[395172152,1764509436229,-200.0,0.00013699,2]
[395172153,1764509436239,-195.0,0.00013728,2]
[395172154,1764509436249,-166.22,0.00014028,2]
[395172155,1764509436258,-300.0,0.00014209,2]
[395172156,1764509436267,-1200.0,0.00014209,2]
[395172157,1764509436277,-300.0,0.00014209,2]
[395172158,1764509436287,-150.0,0.00014209,2]
[395172159,1764509436297,-1005.86587229,0.0001421,2]
[395172160,1764509436306,-1037.4338304,0.0001421,2]
[395172161,1764509436315,-1146.12594479,0.0001421,2]
[395172162,1764509436324,-1096.88261952,0.0001421,2]
[395172163,1764509436334,-1113.73455735,0.0001421,2]
[395172164,1764509436343,-1141.08527914,0.0001421,2]
[395172165,1764509436353,-1960.74521691,0.0001421,2]
[395172166,1764509436362,-150.0,0.0001455,2]
[395172167,1764509436371,-552.61305247,0.000146,2]
[395172168,1764509436380,-500.0,0.00014627,2]
[395172169,1764509436389,-161.97372963,0.00014627,2]
[395172170,1764509436398,-500.0,0.00014627,2]
[395172171,1764509436407,-500.0,0.00014627,2]
[395172172,1764509436416,-500.0,0.00014627,2]
[395172173,1764509436428,-500.0,0.00014627,2]
[395172174,1764509436438,-500.0,0.00014627,2]
[395172175,1764509436451,-500.0,0.00014627,2]
[395172176,1764509436460,-500.0,0.00014627,2]
[395172177,1764509436469,-500.0,0.00014627,2]
[395172179,1764509436478,-500.0,0.00014627,2]
[395172181,1764509436487,-500.0,0.00014627,2]
[395172183,1764509436496,-500.0,0.00014627,2]
[395172185,1764509436505,-500.0,0.00014627,2]
[395172186,1764509436514,-500.0,0.00014627,2]
[395172187,1764509436522,-500.0,0.00014627,2]
[395172188,1764509436832,-500.0,0.00014627,2]
[395172189,1764509436843,-500.0,0.00014627,2]
[395172190,1764509436853,-593.805689,0.00014627,2]
[395172191,1764509436862,-500.0,0.00014627,2]
[395172192,1764509436871,-500.0,0.00014627,2]
[395172193,1764509436881,-500.0,0.00014627,2]
[395172194,1764509436891,-500.0,0.00014627,2]
[395172195,1764509436901,-500.0,0.00014627,2]
[395172196,1764509436912,-500.0,0.00014628,2]
[395172197,1764509436921,-205.49047881,0.00014628,2]
[395172198,1764509436931,-165.97805483,0.00014628,2]
[395172199,1764509436940,-57768.6818646,0.00014629,2]
[395172200,1764509436951,-9624.57609388,0.00014629,2]
[395172201,1764509436963,-19107.52331906,0.00014629,2]
[395172209,1764509437944,-673499.21872246,0.00014629,2]
[395172210,1764509437953,-175.72,0.000147,2]
[395172211,1764509437962,-1072.21727013,0.00014728,2]
[395172212,1764509437971,-154.564,0.00014729,2]
[395172213,1764509437980,-2898.142,0.00014729,2]
[395172214,1764509437990,-150.99,0.00014729,2]
[395172215,1764509437999,-857.06,0.00014729,2]
[395172216,1764509438008,-24086.4323,0.00014729,2]
[395172217,1764509438018,-1636.3286,0.00014729,2]
[395172218,1764509438027,-37250.7909,0.00014729,2]
[395172219,1764509438036,-500.0,0.00014729,2]
[395172220,1764509438046,-500.0,0.00014729,2]
[395172221,1764509438056,-500.0,0.00014729,2]
[395172222,1764509438065,-500.0,0.00014729,2]
[395172223,1764509438075,-500.0,0.00014729,2]
[395172224,1764509438084,-500.0,0.00014729,2]
[395172225,1764509438094,-500.0,0.00014729,2]
[395172226,1764509438103,-500.0,0.00014729,2]
[395172227,1764509438113,-500.0,0.00014729,2]
[395172228,1764509438123,-500.0,0.00014729,2]
[395172229,1764509438132,-500.0,0.00014729,2]
[395172230,1764509438142,-500.0,0.00014729,2]
[395172231,1764509438151,-500.0,0.00014729,2]
[395172232,1764509438160,-500.0,0.00014729,2]
[395172233,1764509438171,-500.0,0.00014729,2]
[395172234,1764509438181,-500.0,0.00014729,2]
[395172235,1764509438191,-197.92719606,0.00014729,2]
[395172236,1764509438201,-250.0,0.00014737,2]
[395172237,1764509438210,-250.0,0.000148,2]
[395172238,1764509438219,-250.0,0.000148,2]
[395172239,1764509438229,-250.0,0.000148,2]
[395172240,1764509438239,-250.0,0.000148,2]
[395172241,1764509438249,-250.0,0.000148,2]
[395172242,1764509438258,-250.0,0.000148,2]
[395172243,1764509438267,-250.0,0.000148,2]
[395172244,1764509438277,-250.0,0.000148,2]
[395172245,1764509438287,-250.0,0.000148,2]
[395172246,1764509438296,-250.0,0.000148,2]
[395172247,1764509438306,-250.0,0.000148,2]
[395172248,1764509438316,-250.0,0.000148,2]
[395172249,1764509438326,-250.0,0.000148,2]
[395172250,1764509438336,-250.0,0.000148,2]
[395172253,1764509438346,-250.0,0.000148,2]
[395172255,1764509438357,-250.0,0.000148,2]
[395172257,1764509438366,-250.0,0.000148,2]
[395172259,1764509438376,-250.0,0.000148,2]
[395172261,1764509438385,-200.5,0.000148,2]
[395172263,1764509438395,-552.02,0.000148,2]
[395172265,1764509438404,-552.02,0.000148,2]
[395172267,1764509438413,-151.0,0.0001482,2]
[395172269,1764509438422,-151.0,0.0001482,2]
[395172271,1764509438432,-151.0,0.0001482,2]
[395172273,1764509438441,-151.0,0.0001482,2]
[395172275,1764509438451,-151.0,0.0001482,2]
[395172277,1764509438460,-151.0,0.0001482,2]
[395172279,1764509438469,-151.0,0.0001482,2]
[395172281,1764509438479,-151.0,0.0001482,2]
[395172283,1764509438489,-182.00740607,0.0001482,2]
[395172285,1764509438499,-1000.0,0.00014829,2]
[395172287,1764509438509,-19643.88,0.00014855,2]
[395172289,1764509438518,-552.61305246,0.00014929,2]
[395172291,1764509438528,-1358.9209654,0.00015,2]
[395172293,1764509438537,-284333.63997388,0.00015,4]
[395172295,1764509438546,-12037.00064594,0.00015,2]
[395172297,1764509438556,-305.33826247,0.00015034,2]
[395172299,1764509438566,-1258.0,0.00015053,2]
[395172301,1764509438575,-1193.0,0.00015053,2]
[395172303,1764509438584,-909.0,0.00015053,2]
[395172305,1764509438596,-252.0,0.00015053,2]
[395172307,1764509438607,-1603.0,0.00015053,2]
[395172309,1764509438616,-2718.0,0.00015053,2]
[395172311,1764509438625,-250.0,0.00015068,2]
[395172313,1764509438635,-195.0,0.00015068,2]
[395172315,1764509438644,-1852.42,0.00015197,2]
[395172317,1764509438653,-552.61305246,0.00015257,2]
[395172318,1764509438662,-164.38079063,0.0001529,2]
[395172319,1764509438671,-705.05,0.000153,2]
[395172320,1764509438680,-255.0,0.00015332,2]
[395172321,1764509438690,-177.88,0.0001537,2]
[395172322,1764509438699,-552.02,0.0001537,2]
[395172323,1764509438708,-420.0,0.00015563,2]
[395172324,1764509438717,-420.0,0.00015563,2]
[395172325,1764509438726,-552.61305246,0.00015586,2]
[395172326,1764509438736,-1680.0,0.0001563,2]
[395172327,1764509438746,-1599.999999,0.000159,2]
[395172328,1764509438756,-980.94379846,0.000159,2]
[395172329,1764509438766,-980.94379843,0.000159,2]
[395172330,1764509438775,-980.94379843,0.000159,2]
[395172331,1764509438784,-980.94379843,0.000159,2]
[395172332,1764509438794,-980.94379843,0.000159,2]
[395172333,1764509438803,-980.94379843,0.000159,2]
[395172334,1764509438813,-552.61305246,0.00015914,2]
[395172335,1764509438822,-500.0,0.00015973,2]
[395172336,1764509438831,-190.81942377,0.00015973,2]
[395172337,1764509438841,-500.0,0.00015973,2]
[395172338,1764509438850,-500.0,0.00015973,2]
[395172339,1764509438860,-500.0,0.00015973,2]
[395172340,1764509438869,-500.65013658,0.00015973,2]
[395172341,1764509438879,-160.07187961,0.00015973,2]
[395172342,1764509438888,-500.0,0.00015973,2]
[395172343,1764509438904,-500.0,0.00015973,2]
[395172344,1764509438914,-500.21383285,0.00015973,2]
[395172345,1764509438923,-500.0,0.00015973,2]
[395172346,1764509438932,-316.03350375,0.00015973,2]
[395172347,1764509438942,-500.0,0.00015973,2]
[395172348,1764509438952,-900.0,0.00015978,2]
[395172349,1764509438962,-310.68826752,0.00015978,2]
[395172350,1764509438973,-319.26681909,0.00016,2]
[395172351,1764509438983,-23666.07387272,0.00016,2]
[395172352,1764509438993,-217943.91760979,0.00016,2]
[395172353,1764509439002,-225175.57219551,0.00016,4]
[395172354,1764509439011,-334.5472959,0.00016305,2]
[395172355,1764509439021,-500.0,0.00016305,2]
[395172356,1764509439030,-257.91778498,0.00016305,2]
[395172357,1764509439040,-500.0,0.00016305,2]
[395172358,1764509439049,-500.0,0.00016305,2]
[395172359,1764509439059,-553.64373807,0.00016305,2]
[395172360,1764509439068,-1000.0,0.00016305,2]
[395172361,1764509439079,-1000.0,0.00016305,2]
[395172362,1764509439089,-1000.0,0.00016305,2]
[395172363,1764509439099,-1000.0,0.00016305,2]
[395172364,1764509439108,-1000.0,0.00016305,2]
[395172365,1764509439118,-1000.0,0.00016305,2]
[395172366,1764509439128,-1000.0,0.00016305,2]
[395172367,1764509439138,-1000.0,0.00016305,2]
[395172368,1764509439148,-1000.0,0.00016305,2]
[395172369,1764509439158,-1000.0,0.00016305,2]
[395172370,1764509439168,-1000.0,0.00016305,2]
[395172371,1764509439178,-1000.0,0.00016305,2]
[395172372,1764509439188,-1000.0,0.00016305,2]
[395172373,1764509439198,-1000.0,0.00016305,2]
[395172374,1764509439208,-1000.0,0.00016305,2]
[395172375,1764509439218,-1000.0,0.00016305,2]
[395172377,1764509439227,-357.53456067,0.00016305,2]
[395172378,1764509439236,-151.0,0.00016305,2]
[395172379,1764509439246,-578.20924308,0.00016305,2]
[395172380,1764509439255,-200.0,0.0001634,2]
[395172381,1764509439265,-500.0,0.00016438,2]
[395172382,1764509439275,-500.0,0.00016438,2]
[395172383,1764509439284,-377.56312451,0.00016438,2]
[395172384,1764509439295,-6608.79,0.00016438,2]
[395172385,1764509439305,-772.98303428,0.00016438,2]
[395172386,1764509439314,-1000.0,0.00016521,2]
[395172387,1764509439324,-1000.0,0.00016521,2]
[395172388,1764509439333,-1000.0,0.00016521,2]
[395172389,1764509439343,-1000.0,0.00016521,2]
[395172390,1764509439353,-1000.0,0.00016521,2]
[395172391,1764509439363,-1000.0,0.00016521,2]
[395172392,1764509439373,-433.0,0.00016539,2]
[395172393,1764509439383,-2041.0,0.00016667,2]
[395172394,1764509439393,-2041.0,0.00016731,2]
[395172395,1764509439403,-2041.0,0.00016792,2]
[395172396,1764509439412,-201.41866534,0.000169,2]
[395172397,1764509439421,-7476.8385215,0.000169,2]
[395172398,1764509439430,-334.43684184,0.000169,2]
[395172399,1764509439439,-2041.0,0.00016902,2]
[395172400,1764509439449,-202.05493673,0.00016947,2]
[395172401,1764509439458,-2041.0,0.0001695,2]
[395172402,1764509439467,-2041.0,0.00016957,2]
[395172403,1764509439476,-160.11734806,0.0001697,2]
[395172404,1764509439485,-500.0,0.00016973,2]
[395172405,1764509439495,-500.0,0.00016973,2]
[395172407,1764509439504,-500.0,0.00016973,2]
[395172408,1764509439513,-500.0,0.00016973,2]
[395172409,1764509439522,-500.0,0.00016973,2]
[395172410,1764509439531,-500.0,0.00016973,2]
[395172411,1764509439540,-500.0,0.00016973,2]
[395172412,1764509439549,-540.53867105,0.00016973,2]
[395172413,1764509439557,-500.0,0.00016973,2]
[395172414,1764509439566,-500.0,0.00016973,2]
[395172415,1764509439575,-500.0,0.00016973,2]
[395172416,1764509439585,-500.0,0.00016973,2]
[395172417,1764509439600,-500.0,0.00016973,2]
[395172418,1764509439610,-500.75968259,0.00016973,2]
[395172419,1764509439620,-500.0,0.00016973,2]
[395172420,1764509439629,-500.0,0.00016973,2]
[395172421,1764509439639,-500.0,0.00016973,2]
[395172422,1764509439649,-500.0,0.00016973,2]
[395172423,1764509439658,-415.54250471,0.00016973,2]
[395172424,1764509439669,-500.0,0.00016973,2]
[395172425,1764509439678,-500.0,0.00016973,2]
[395172427,1764509439687,-215.92719524,0.00016973,2]
[395172428,1764509439700,-500.0,0.00016973,2]
[395172429,1764509439710,-500.0,0.00016973,2]
[395172430,1764509439719,-200.00768026,0.00016973,2]
[395172431,1764509439727,-500.0,0.00016973,2]
[395172432,1764509439736,-172.99922432,0.00016973,2]
[395172433,1764509439745,-500.0,0.00016973,2]
[395172434,1764509439754,-500.0,0.00016973,2]
[395172435,1764509439763,-500.0,0.00016973,2]
[395172436,1764509439772,-2041.0,0.00016984,2]
[395172437,1764509439782,-1347.0,0.00016986,2]
[395172438,1764509439791,-164.38079063,0.0001699,2]
[395172439,1764509439800,-164.38079063,0.0001699,2]
[395172440,1764509439813,-300.0,0.00016999,2]
[395172441,1764509439822,-300.0,0.00016999,2]
[395172442,1764509439832,-250.0,0.00017,2]
[395172443,1764509439840,-150.0,0.00017,2]
[395172444,1764509439851,-74617.02504029,0.00017,2]
[395172445,1764509439865,-4858598.97364574,0.00017,2]
[395172446,1764509439878,-23062.71467722,0.00017,2]
[395172447,1764509439897,-1298.895,0.00017,2]
[395172448,1764509439979,-562.0,0.00015053,2]
[395172449,1764509439987,-772.47075559,0.00017,2]
[395172450,1764509439999,-1892.54,0.00017,2]
[395172451,1764509440010,-347.52499958,0.00017,2]
[395172452,1764509440020,-330.504999,0.00017,2]
[395172453,1764509440031,-1583.06796825,0.00017,2]
[395172454,1764509440050,-2325439.67137986,0.00017,2]
[395172455,1764509440064,-2683.82445789,0.00017,2]
[395172456,1764509440154,-5338.23507846,0.00017,2]
[395172497,1764509446165,-552.61305246,0.00016243,2]
[395172498,1764509446175,-1234.1868656,0.000169,2]
[395172499,1764509446184,-2388.00936274,0.000169,2]
[395172500,1764509446193,-4159.69,0.00016964,2]
[395172501,1764509446202,-181767.94376338,0.00017,2]
[395172502,1764509446239,-380.60579219,0.00017,2]
[395172503,1764509446258,-379.12000001,0.00017,2]
[395172592,1764509480064,-1874.3512,0.00014729,2]
[395172593,1764509480093,-3442.0,0.00015053,2]
[395172594,1764509480116,-610.0,0.00015053,2]
[395172595,1764509480138,-6506.0,0.00015053,2]
[395172596,1764509480162,-640.0,0.00015053,2]
[395172597,1764509480184,-195.0,0.00015433,2]
[395172598,1764509480206,-300.0,0.00015812,2]
[395172599,1764509480228,-195.0,0.00016089,2]
[395172600,1764509480249,-150.0,0.00016305,2]
[395172601,1764509480271,-255.07516903,0.00016305,2]
[395172602,1764509480293,-150.0,0.00016305,2]
[395172603,1764509480315,-150.0,0.00016305,2]
[395172604,1764509480337,-150.0,0.00016305,2]
[395172605,1764509480360,-150.0,0.00016442,2]
[395172606,1764509480382,-150.0,0.00016442,2]
[395172607,1764509480405,-150.0,0.00016442,2]
[395172608,1764509480427,-300.0,0.00016451,2]
[395172609,1764509480449,-300.0,0.00016451,2]
[395172610,1764509480471,-300.0,0.00016451,2]
[395172611,1764509480493,-300.0,0.00016451,2]
[395172612,1764509480514,-300.0,0.00016451,2]
[395172613,1764509480534,-300.0,0.00016559,2]
[395172614,1764509480556,-300.0,0.00016559,2]
[395172615,1764509480579,-3047.39081104,0.00016559,3]
[395172616,1764509480605,-195.0,0.00016559,2]
[395172617,1764509480632,-150.39058857,0.00016559,2]
[395172618,1764509480655,-2553.08441021,0.00016559,2]